fUSD/lending_fUSD_20250308
["ID","MTS","AMOUNT","RATE_DAILY","PERIOD"]
[355667380,1741449063820,-1537.63,9.589e-05,2]
[355667381,1741449063831,-1463.5,9.589e-05,2]
[355667382,1741449063841,-5714.09,9.589e-05,2]
[355667383,1741449063851,-500.0,9.589e-05,2]
[355667384,1741449063862,-876.01,9.589e-05,2]
[355667385,1741449063872,-6438.41,9.589e-05,2]
[355667386,1741449063882,-500.0,9.589e-05,2]
[355667387,1741449063894,-500.0,9.589e-05,2]
[355667388,1741449063907,-1974.39,9.589e-05,2]
[355667389,1741449063918,-28872.75,9.589e-05,2]
[355667390,1741449063929,-637.14,9.589e-05,2]
[355667391,1741449063939,-500.0,9.589e-05,2]
[355667392,1741449063949,-1397.77,9.589e-05,2]
[355667393,1741449063959,-2222.19,9.589e-05,2]
[355667394,1741449063968,-509.76,9.589e-05,2]
[355667395,1741449063979,-3022.95,9.589e-05,2]
[355667396,1741449063990,-513.34,9.589e-05,2]
[355667397,1741449064001,-1283.34,9.589e-05,2]
[355667398,1741449064010,-828.61166949,9.592e-05,2]
[355667399,1741449064020,-249.99774741,9.629e-05,2]
[355667400,1741449064031,-150.0,9.63e-05,2]
[355667401,1741449064042,-150.0,9.632e-05,2]
[355667402,1741449064052,-150.0,9.637e-05,2]
[355667403,1741449064061,-150.0,9.64e-05,2]
[355667404,1741449064071,-150.0,9.642e-05,2]
[355667405,1741449064081,-150.0,9.645e-05,2]
[355667406,1741449064091,-150.0,9.647e-05,2]
[355667407,1741449064101,-150.0,9.647e-05,2]
[355667408,1741449064111,-150.0,9.65e-05,2]
[355667409,1741449064121,-150.0,9.65e-05,2]
[355667410,1741449064132,-150.0,9.653e-05,2]
[355667411,1741449064142,-150.0,9.655e-05,2]
[355667412,1741449064152,-150.0,9.656e-05,2]
[355667413,1741449064162,-150.0,9.659e-05,2]
[355667414,1741449064172,-150.0,9.676e-05,2]
[355667415,1741449064182,-150.0,9.677e-05,2]
[355667416,1741449064193,-433.64969305,9.677e-05,2]
[355667417,1741449064203,-150.0,9.678e-05,2]
[355667418,1741449064213,-828.61166949,9.678e-05,2]
[355667419,1741449064223,-150.0,9.679e-05,2]
[355667420,1741449064233,-150.0,9.68e-05,2]
[355667421,1741449064243,-150.0,9.68e-05,2]
[355667422,1741449064441,-150.0,9.681e-05,2]
[355667423,1741449064451,-1000.0,9.685e-05,2]
[355667424,1741449064461,-150.0,9.69e-05,2]
[355667425,1741449064470,-150.0,9.696e-05,2]
[355667426,1741449064479,-150.0,9.697e-05,2]
[355667427,1741449064494,-150.0,9.697e-05,2]
[355667428,1741449064505,-150.0,9.699e-05,2]
[355667429,1741449064515,-150.0,9.699e-05,2]
[355667430,1741449064526,-150.0,9.7e-05,2]
[355667431,1741449064536,-150.0,9.701e-05,2]
[355667432,1741449064547,-150.0,9.706e-05,2]
[355667433,1741449064557,-150.0,9.714e-05,2]
[355667434,1741449064568,-150.0,9.717e-05,2]
[355667435,1741449064578,-150.0,9.722e-05,2]
[355667436,1741449064588,-150.0,9.73e-05,2]
[355667437,1741449064598,-150.0,9.739e-05,2]
[355667438,1741449064607,-150.0,9.742e-05,2]
[355667439,1741449064617,-154.91361423,9.743e-05,2]
[355667440,1741449064626,-150.0,9.75e-05,2]
[355667441,1741449064636,-150.0,9.755e-05,2]
[355667442,1741449064646,-150.0,9.757e-05,2]
[355667443,1741449064656,-150.0,9.757e-05,2]
[355667444,1741449064665,-150.0,9.758e-05,2]
[355667445,1741449064674,-828.61166949,9.764e-05,2]
[355667446,1741449064684,-150.0,9.765e-05,2]
[355667447,1741449064694,-150.0,9.768e-05,2]
[355667448,1741449064703,-150.0,9.769e-05,2]
[355667449,1741449064713,-1000.0,9.77e-05,2]
[355667450,1741449064723,-150.0,9.771e-05,2]
[355667451,1741449064732,-150.0,9.771e-05,2]
[355667452,1741449064741,-150.80459688,9.783e-05,2]
[355667453,1741449064751,-150.0,9.784e-05,2]
[355667454,1741449064760,-150.0,9.785e-05,2]
[355667455,1741449064770,-150.0,9.787e-05,2]
[355667456,1741449064779,-150.0,9.79e-05,2]
[355667457,1741449064789,-150.0,9.79e-05,2]
[355667458,1741449064799,-150.0,9.791e-05,2]
[355667459,1741449064809,-150.0,9.795e-05,2]
[355667460,1741449064819,-150.0,9.796e-05,2]
[355667461,1741449064828,-150.0,9.796e-05,2]
[355667462,1741449064838,-2067.94,9.798e-05,2]
[355667463,1741449064848,-56256.09985133,9.799e-05,2]
[355667464,1741449064915,-722.1,8.493e-05,2]
[355667465,1741449067063,-585.67,8.219e-05,2]
[355667466,1741449067072,-5702.09,8.493e-05,2]
[355667467,1741449067082,-585.67,8.493e-05,2]
[355667468,1741449067091,-6424.19,8.767e-05,2]
[355667469,1741449067102,-1060.45293169,9.041e-05,2]
[355667470,1741449067115,-337.81706831,9.041e-05,2]
[355667471,1741449067124,-213.85098218,9.041e-05,2]
[355667472,1741449067136,-2057.23901782,9.041e-05,2]
[355667473,1741449067147,-302.29098218,9.041e-05,2]
[355667474,1741449067160,-1579.62,9.041e-05,2]
[355667475,1741449067178,-1106.60310953,9.041e-05,2]
[355667476,1741449067968,-500.0,8.219e-05,2]
[355667477,1741449067982,-500.0,8.219e-05,2]
[355667478,1741449067991,-500.0,8.493e-05,2]
[355667479,1741449068001,-585.67,8.767e-05,2]
[355667480,1741449068011,-500.0,8.767e-05,2]
[355667481,1741449068020,-3435.67590829,9.041e-05,2]
[355667482,1741449068030,-585.67,9.041e-05,2]
[355667483,1741449068039,-500.0,9.315e-05,2]
[355667484,1741449068050,-1398.27,9.315e-05,2]
[355667485,1741449068059,-619.94465559,9.315e-05,2]
[355667486,1741449068071,-1651.14534441,9.315e-05,2]
[355667487,1741449068080,-6424.19,9.315e-05,2]
[355667488,1741449068090,-585.67,9.315e-05,2]
[355667489,1741449068099,-500.0,9.589e-05,2]
[355667490,1741449068109,-1398.27,9.589e-05,2]
[355667491,1741449068117,-2271.09,9.589e-05,2]
[355667492,1741449068125,-6424.19,9.589e-05,2]
[355667493,1741449068134,-585.67,9.589e-05,2]
[355667494,1741449068142,-22532.70598707,9.799e-05,2]
[355667495,1741449068151,-150.0,9.801e-05,2]
[355667496,1741449068160,-150.0,9.804e-05,2]
[355667497,1741449068168,-150.0,9.806e-05,2]
[355667498,1741449068178,-150.0,9.807e-05,2]
[355667499,1741449068187,-150.0,9.807e-05,2]
[355667500,1741449068197,-150.0,9.811e-05,2]
[355667501,1741449068206,-150.0,9.812e-05,2]
[355667502,1741449068216,-150.0,9.815e-05,2]
[355667503,1741449068226,-150.0,9.819e-05,2]
[355667504,1741449068235,-150.0,9.821e-05,2]
[355667505,1741449068244,-150.0,9.822e-05,2]
[355667506,1741449068254,-150.0,9.835e-05,2]
[355667507,1741449068264,-150.0,9.838e-05,2]
[355667508,1741449068273,-51879.08156751,9.84e-05,2]
[355667509,1741449068319,-214.162,8.631e-05,2]
[355667510,1741449068328,-500.0,9.041e-05,2]
[355667511,1741449068337,-5774.42727997,9.84e-05,2]
[355667520,1741449140797,-513.43216536,8.219e-05,2]
[355667521,1741449140821,-500.0,8.219e-05,2]
[355667522,1741449140843,-560.29,8.219e-05,2]
[355667523,1741449140867,-500.0,8.219e-05,2]
[355667524,1741449140890,-500.0,8.219e-05,2]
[355667525,1741449140914,-1061.16,8.219e-05,2]
[355667526,1741449140939,-500.0,8.219e-05,2]
[355667527,1741449140960,-500.0,8.219e-05,2]
[355667528,1741449140983,-500.0,8.219e-05,2]
[355667529,1741449141006,-438.58220627,8.219e-05,2]
[355667530,1741449141029,-500.0,8.219e-05,2]
[355667531,1741449141051,-1196.53562837,8.219e-05,2]
[355667543,1741449333979,4014.01,0.00020111,120]
[355667544,1741449408661,-300.0,0.0001,7]
[355667545,1741449436837,-2000.0,0.000129,20]
[355667546,1741449520005,-500.0,8.219e-05,7]
[355667547,1741449530563,-500.0,8.493e-05,7]
[355667548,1741449537205,-208.3622724,8.767e-05,7]
[355667549,1741449588980,-153.31,0.000139,31]
[355667550,1741449589013,-153.31,0.000139,31]
[355667551,1741449589047,-153.31,0.000139,31]
[355667552,1741449589081,-153.31,0.000139,31]
[355667553,1741449589113,-153.31,0.000139,31]
[355667554,1741449589147,-153.31,0.000139,31]
[355667555,1741449589180,-153.31,0.000139,31]
[355667556,1741449657719,169.66,8.023e-05,2]
[355667557,1741449697620,164.8,7.766e-05,2]
[355667558,1741449697734,164.8,7.999e-05,2]
[355667559,1741449723069,-1500.0,0.00013,10]
[355667560,1741449725107,-1500.0,0.00013,10]
[355667561,1741449763972,-1500.0,0.00013,10]
[355667562,1741449765140,-1500.0,0.00013,10]
[355667563,1741449846709,231.23,7.855e-05,2]
[355667642,1741450231908,5248.14,7.677e-05,2]
[355667644,1741450232196,-500.0,8.219e-05,2]
[355667645,1741450232207,-500.0,8.219e-05,2]
[355667646,1741450232217,-500.0,8.219e-05,2]
[355667647,1741450232226,-500.0,8.219e-05,2]
[355667648,1741450232237,-113.28286315,8.219e-05,2]
[355667649,1741450232249,-386.71713685,8.219e-05,2]
[355667650,1741450232260,-467.30286315,8.219e-05,2]
[355667651,1741450232293,-32.69713685,8.219e-05,2]
[355667652,1741450232303,-500.0,8.219e-05,2]
[355667653,1741450232314,-500.0,8.219e-05,2]
[355667654,1741450232325,-500.0,8.219e-05,2]
[355667655,1741450232334,-500.0,8.219e-05,2]
[355667656,1741450232344,-500.0,8.219e-05,2]
[355667657,1741450232355,-623.78,8.219e-05,2]
[355667658,1741450232366,-500.0,8.219e-05,2]
[355667659,1741450232377,-735.61,8.219e-05,2]
[355667660,1741450232388,-500.0,8.219e-05,2]
[355667661,1741450232400,-500.0,8.219e-05,2]
[355667662,1741450232409,-500.0,8.219e-05,2]
[355667663,1741450232419,-500.0,8.219e-05,2]
[355667664,1741450232430,-500.0,8.219e-05,2]
[355667665,1741450232440,-500.0,8.219e-05,2]
[355667666,1741450232451,-500.0,8.219e-05,2]
[355667667,1741450232461,-31.91824875,8.219e-05,2]
[355667668,1741450232474,-468.08175125,8.219e-05,2]
[355667669,1741450232484,-500.0,8.219e-05,2]
[355667670,1741450232494,-500.0,8.219e-05,2]
[355667671,1741450232504,-97.4342519,8.219e-05,2]
[355667672,1741450232516,-402.5657481,8.219e-05,2]
[355667673,1741450232526,-371.77606655,8.219e-05,2]
[355667674,1741450232548,-128.22393345,8.219e-05,2]
[355667675,1741450232558,-500.0,8.219e-05,2]
[355667676,1741450232569,-500.0,8.219e-05,2]
[355667677,1741450232578,-438.07228577,8.219e-05,2]
[355667679,1741450232588,-536.09,8.219e-05,2]
[355667681,1741450232598,-500.0,8.219e-05,2]
[355667683,1741450232608,-152.86799708,8.219e-05,2]
[355667685,1741450232617,-114.4693666,8.219e-05,2]
[355667691,1741450232669,-385.5306334,8.219e-05,2]
[355667694,1741450232689,-500.0,8.219e-05,2]
[355667696,1741450232699,-500.0,8.219e-05,2]
[355667698,1741450232709,-500.0,8.219e-05,2]
[355667700,1741450232719,-500.0,8.219e-05,2]
[355667702,1741450232754,-500.0,8.219e-05,2]
[355667707,1741450232764,-500.0,8.219e-05,2]
[355667710,1741450232774,-500.0,8.219e-05,2]
[355667711,1741450232786,-500.0,8.219e-05,2]
[355667713,1741450232796,-500.0,8.219e-05,2]
[355667715,1741450232806,-214.8851654,8.219e-05,2]
[355667717,1741450232816,-96.00960733,8.219e-05,2]
[355667776,1741450238039,-403.99039267,8.219e-05,2]
[355667777,1741450238050,-500.0,8.219e-05,2]
[355667778,1741450238059,-500.0,8.219e-05,2]
[355667779,1741450238069,-500.0,8.219e-05,2]
[355667780,1741450238079,-500.0,8.219e-05,2]
[355667781,1741450238090,-500.0,8.219e-05,2]
[355667782,1741450238100,-500.0,8.219e-05,2]
[355667783,1741450238110,-500.0,8.219e-05,2]
[355667784,1741450238120,-500.0,8.219e-05,2]
[355667785,1741450238130,-500.0,8.219e-05,2]
[355667786,1741450238140,-500.0,8.219e-05,2]
[355667787,1741450238150,-117.00960733,8.219e-05,2]
[355667788,1741450238162,-382.99039267,8.219e-05,2]
[355667789,1741450238172,-500.0,8.219e-05,2]
[355667790,1741450238182,-611.2,8.219e-05,2]
[355667791,1741450238192,-500.0,8.219e-05,2]
[355667792,1741450238202,-500.0,8.219e-05,2]
[355667793,1741450238212,-500.0,8.219e-05,2]
[355667794,1741450238221,-500.0,8.219e-05,2]
[355667795,1741450238231,-500.0,8.219e-05,2]
[355667796,1741450238241,-500.0,8.219e-05,2]
[355667797,1741450238250,-598.25,8.219e-05,2]
[355667798,1741450238259,-500.0,8.219e-05,2]
[355667799,1741450238270,-500.0,8.219e-05,2]
[355667800,1741450238282,-801.86,8.219e-05,2]
[355667801,1741450238293,-500.0,8.219e-05,2]
[355667802,1741450238303,-500.0,8.219e-05,2]
[355667804,1741450238314,-563.45,8.219e-05,2]
[355667805,1741450238323,-500.0,8.219e-05,2]
[355667806,1741450238332,-631.96,8.219e-05,2]
[355667807,1741450238341,-500.0,8.219e-05,2]
[355667808,1741450238351,-786.33,8.219e-05,2]
[355667809,1741450238361,-500.0,8.219e-05,2]
[355667810,1741450238370,-585.65,8.219e-05,2]
[355667811,1741450238379,-500.0,8.219e-05,2]
[355667812,1741450238388,-559.71,8.219e-05,2]
[355667813,1741450238398,-500.0,8.219e-05,2]
[355667814,1741450238407,-500.0,8.219e-05,2]
[355667815,1741450238416,-500.0,8.219e-05,2]
[355667816,1741450238425,-500.0,8.219e-05,2]
[355667817,1741450238434,-367.53613977,8.219e-05,2]
[355667819,1741450238444,-570.31,8.219e-05,2]
[355667821,1741450238454,-500.0,8.219e-05,2]
[355667823,1741450238464,-112.2108302,8.219e-05,2]
[355667825,1741450238477,-387.7891698,8.219e-05,2]
[355667827,1741450238487,-500.0,8.219e-05,2]
[355667829,1741450238497,-674.8,8.219e-05,2]
[355667831,1741450238507,-500.0,8.219e-05,2]
[355667833,1741450238516,-500.0,8.219e-05,2]
[355667835,1741450238526,-500.0,8.219e-05,2]
[355667837,1741450238536,-875.54,8.219e-05,2]
[355667839,1741450238546,-500.0,8.219e-05,2]
[355667841,1741450238557,-697.96,8.219e-05,2]
[355667843,1741450238566,-500.0,8.219e-05,2]
[355667845,1741450238575,-500.0,8.219e-05,2]
[355667847,1741450238586,-500.0,8.219e-05,2]
[355667849,1741450238596,-500.0,8.219e-05,2]
[355667851,1741450238606,-500.0,8.219e-05,2]
[355667853,1741450238615,-828.33,8.219e-05,2]
[355667855,1741450238624,-500.0,8.219e-05,2]
[355667857,1741450238634,-500.0,8.219e-05,2]
[355667859,1741450238644,-554.2,8.219e-05,2]
[355667861,1741450238653,-500.0,8.219e-05,2]
[355667863,1741450238662,-500.0,8.219e-05,2]
[355667865,1741450238671,-500.0,8.219e-05,2]
[355667867,1741450238681,-500.0,8.219e-05,2]
[355667897,1741450238947,-500.0,8.219e-05,2]
[355667899,1741450238961,-500.0,8.219e-05,2]
[355667901,1741450238970,-511.03,8.219e-05,2]
[355667903,1741450238980,-608.61,8.219e-05,2]
[355667905,1741450238990,-200.82135699,8.219e-05,2]
[355667907,1741450238999,-602.41,8.219e-05,2]
[355667909,1741450239009,-500.0,8.219e-05,2]
[355667911,1741450239019,-500.0,8.219e-05,2]
[355667913,1741450239029,-238.6980976,8.219e-05,2]
[355667915,1741450239041,-261.3019024,8.219e-05,2]
[355667917,1741450239051,-500.0,8.219e-05,2]
[355667919,1741450239060,-500.0,8.219e-05,2]
[355667921,1741450239069,-567.16,8.219e-05,2]
[355667923,1741450239078,-500.0,8.219e-05,2]
[355667925,1741450239087,-500.0,8.219e-05,2]
[355667927,1741450239097,-500.0,8.219e-05,2]
[355667929,1741450239107,-500.0,8.219e-05,2]
[355667931,1741450239116,-500.0,8.219e-05,2]
[355667933,1741450239126,-716.52,8.219e-05,2]
[355667935,1741450239136,-516.17,8.219e-05,2]
[355667937,1741450239146,-555.84,8.219e-05,2]
[355667939,1741450239155,-500.0,8.219e-05,2]
[355667941,1741450239164,-270.03706329,8.219e-05,2]
[355667943,1741450239174,-500.0,8.219e-05,2]
[355667945,1741450239184,-611.173404,8.219e-05,2]
[355667947,1741450239195,-654.94,8.219e-05,2]
[355667949,1741450239204,-500.0,8.219e-05,2]
[355667951,1741450239214,-842.65,8.219e-05,2]
[355667953,1741450239224,-500.0,8.219e-05,2]
[355667955,1741450239233,-774.84,8.219e-05,2]
[355667957,1741450239243,-729.36763031,8.219e-05,2]
[355667961,1741450239272,-233.22236969,8.219e-05,2]
[355667963,1741450239288,-260.78763031,8.219e-05,2]
[355667977,1741450239409,-239.21236969,8.219e-05,2]
[355667979,1741450239419,-500.0,8.219e-05,2]
[355667981,1741450239429,-181.55761031,8.219e-05,2]
[355667995,1741450239552,-408.37238969,8.219e-05,2]
[355667997,1741450239562,-500.0,8.219e-05,2]
[355667999,1741450239571,-500.0,8.219e-05,2]
[355668001,1741450239581,-56.09083895,8.219e-05,2]
[355668003,1741450239593,-443.90916105,8.219e-05,2]
[355668005,1741450239602,-500.0,8.219e-05,2]
[355668007,1741450239612,-500.0,8.219e-05,2]
[355668009,1741450239622,-500.0,8.219e-05,2]
[355668011,1741450239631,-589.43,8.219e-05,2]
[355668013,1741450239641,-500.0,8.219e-05,2]
[355668015,1741450239651,-500.0,8.219e-05,2]
[355668017,1741450239660,-500.0,8.219e-05,2]
[355668019,1741450239670,-98.08695895,8.219e-05,2]
[355668101,1741450240431,-401.91304105,8.219e-05,2]
[355668103,1741450240442,-709.03,8.219e-05,2]
[355668105,1741450240452,-279.07004056,8.219e-05,2]
[355668107,1741450240464,-220.92995944,8.219e-05,2]
[355668109,1741450240474,-500.0,8.219e-05,2]
[355668111,1741450240483,-393.282689,8.219e-05,2]
[355668113,1741450240492,-500.0,8.219e-05,2]
[355668115,1741450240501,-163.28937998,8.219e-05,2]
[355668117,1741450240511,-517.79,8.219e-05,2]
[355668119,1741450240520,-1001.97,8.219e-05,2]
[355668121,1741450240530,-500.0,8.219e-05,2]
[355668123,1741450240540,-500.0,8.219e-05,2]
[355668125,1741450240550,-500.0,8.219e-05,2]
[355668127,1741450240560,-864.87,8.219e-05,2]
[355668129,1741450240569,-500.0,8.219e-05,2]
[355668131,1741450240579,-500.0,8.219e-05,2]
[355668133,1741450240588,-834.37,8.219e-05,2]
[355668135,1741450240597,-500.0,8.219e-05,2]
[355668137,1741450240607,-500.0,8.219e-05,2]
[355668138,1741450240616,-500.0,8.219e-05,2]
[355668139,1741450240626,-534.8,8.219e-05,2]
[355668140,1741450240635,-1049.79,8.219e-05,2]
[355668141,1741450240644,-500.0,8.219e-05,2]
[355668142,1741450240653,-860.21,8.219e-05,2]
[355668143,1741450240663,-500.0,8.219e-05,2]
[355668144,1741450240672,-976.28,8.219e-05,2]
[355668145,1741450240681,-500.0,8.219e-05,2]
[355668146,1741450240691,-859.81,8.219e-05,2]
[355668147,1741450240700,-500.0,8.219e-05,2]
[355668149,1741450240710,-500.0,8.219e-05,2]
[355668151,1741450240719,-500.0,8.219e-05,2]
[355668153,1741450240728,-1000.46,8.219e-05,2]
[355668155,1741450240738,-500.0,8.219e-05,2]
[355668157,1741450240747,-516.04,8.219e-05,2]
[355668159,1741450240757,-500.0,8.219e-05,2]
[355668161,1741450240767,-500.0,8.219e-05,2]
[355668163,1741450240776,-573.05,8.219e-05,2]
[355668165,1741450240785,-500.0,8.219e-05,2]
[355668167,1741450240797,-1201.81,8.219e-05,2]
[355668169,1741450240807,-500.0,8.219e-05,2]
[355668171,1741450240817,-500.0,8.219e-05,2]
[355668173,1741450240827,-608.51,8.219e-05,2]
[355668175,1741450240837,-1223.76,8.219e-05,2]
[355668177,1741450240846,-972.3,8.219e-05,2]
[355668179,1741450240856,-500.0,8.219e-05,2]
[355668181,1741450240866,-500.0,8.219e-05,2]
[355668183,1741450240876,-500.0,8.219e-05,2]
[355668185,1741450240885,-500.0,8.219e-05,2]
[355668187,1741450240895,-923.34,8.219e-05,2]
[355668189,1741450240905,-676.23,8.219e-05,2]
[355668191,1741450240914,-528.52,8.219e-05,2]
[355668193,1741450240924,-500.0,8.219e-05,2]
[355668195,1741450240933,-564.81,8.219e-05,2]
[355668197,1741450240943,-516.47,8.219e-05,2]
[355668199,1741450240952,-500.0,8.219e-05,2]
[355668201,1741450240963,-1192.68,8.219e-05,2]
[355668203,1741450240972,-628.26,8.219e-05,2]
[355668205,1741450240982,-500.0,8.219e-05,2]
[355668207,1741450240991,-398.2134504,8.219e-05,2]
[355668209,1741450241000,-764.96,8.219e-05,2]
[355668211,1741450241010,-1006.07,8.219e-05,2]
[355668213,1741450241019,-500.0,8.219e-05,2]
[355668215,1741450241029,-565.59,8.219e-05,2]
[355668217,1741450241038,-500.0,8.219e-05,2]
[355668219,1741450241047,-500.0,8.219e-05,2]
[355668221,1741450241057,-500.0,8.219e-05,2]
[355668223,1741450241067,-515.54,8.219e-05,2]
[355668225,1741450241076,-594.03,8.219e-05,2]
[355668227,1741450241085,-500.0,8.219e-05,2]
[355668229,1741450241094,-930.15,8.219e-05,2]
[355668231,1741450241104,-500.0,8.219e-05,2]
[355668233,1741450241114,-633.41,8.219e-05,2]
[355668235,1741450241123,-500.0,8.219e-05,2]
[355668237,1741450241132,-500.0,8.219e-05,2]
[355668239,1741450241142,-1209.92,8.219e-05,2]
[355668241,1741450241151,-511.44,8.219e-05,2]
[355668243,1741450241161,-773.96,8.219e-05,2]
[355668245,1741450241170,-500.0,8.219e-05,2]
[355668247,1741450241181,-2083.12,8.219e-05,2]
[355668249,1741450241191,-500.0,8.219e-05,2]
[355668251,1741450241200,-864.36,8.219e-05,2]
[355668253,1741450241210,-4992.7,8.219e-05,2]
[355668255,1741450241220,-500.0,8.219e-05,2]
[355668257,1741450241229,-594.4,8.219e-05,2]
[355668259,1741450241239,-627.02,8.219e-05,2]
[355668261,1741450241248,-500.0,8.219e-05,2]
[355668263,1741450241257,-851.99,8.219e-05,2]
[355668265,1741450241267,-1442.37,8.219e-05,2]
[355668267,1741450241280,-1003.48,8.219e-05,2]
[355668269,1741450241292,-5042.13,8.219e-05,2]
[355668271,1741450241302,-2121.73,8.219e-05,2]
[355668273,1741450241311,-500.0,8.219e-05,2]
[355668275,1741450241322,-500.0,8.219e-05,2]
[355668277,1741450241332,-879.88,8.219e-05,2]
[355668279,1741450241341,-4139.0,8.219e-05,2]
[355668281,1741450241351,-2225.22,8.219e-05,2]
[355668283,1741450241361,-2387.01,8.219e-05,2]
[355668285,1741450241371,-1387.09,8.219e-05,2]
[355668287,1741450241380,-500.0,8.219e-05,2]
[355668289,1741450241389,-500.0,8.219e-05,2]
[355668291,1741450241398,-500.0,8.219e-05,2]
[355668293,1741450241407,-500.0,8.219e-05,2]
[355668295,1741450241416,-1041.41,8.219e-05,2]
[355668297,1741450241425,-2411.52,8.219e-05,2]
[355668299,1741450241434,-644.99,8.219e-05,2]
[355668301,1741450241443,-500.0,8.219e-05,2]
[355668303,1741450241452,-500.0,8.219e-05,2]
[355668305,1741450241462,-1755.99,8.219e-05,2]
[355668307,1741450241471,-1615.13,8.219e-05,2]
[355668309,1741450241480,-1370.66,8.219e-05,2]
[355668311,1741450241490,-500.0,8.219e-05,2]
[355668313,1741450241498,-645.8936573,8.219e-05,2]
[355668315,1741450241508,-500.0,8.219e-05,2]
[355668317,1741450241517,-1657.53,8.219e-05,2]
[355668319,1741450241527,-500.0,8.219e-05,2]
[355668321,1741450241536,-1898.02,8.219e-05,2]
[355668323,1741450241547,-500.0,8.219e-05,2]
[355668325,1741450241558,-786.54,8.219e-05,2]
[355668327,1741450241567,-631.73,8.219e-05,2]
[355668329,1741450241576,-503.04,8.219e-05,2]
[355668331,1741450241585,-154.86641144,8.219e-05,2]
[355668333,1741450241596,-500.0,8.219e-05,2]
[355668335,1741450241605,-2515.6,8.219e-05,2]
[355668337,1741450241614,-500.0,8.219e-05,2]
[355668339,1741450241624,-1347.38,8.219e-05,2]
[355668341,1741450241634,-778.74,8.219e-05,2]
[355668343,1741450241643,-1222.18,8.219e-05,2]
[355668345,1741450241652,-1595.58,8.219e-05,2]
[355668346,1741450241662,-1606.44,8.219e-05,2]
[355668347,1741450241672,-2769.7,8.219e-05,2]
[355668348,1741450241693,-500.0,8.219e-05,2]
[355668350,1741450241703,-785.85,8.219e-05,2]
[355668353,1741450241713,-500.0,8.219e-05,2]
[355668354,1741450241723,-500.0,8.219e-05,2]
[355668356,1741450241733,-1497.11,8.219e-05,2]
[355668359,1741450241743,-1166.49,8.219e-05,2]
[355668360,1741450241752,-500.0,8.219e-05,2]
[355668363,1741450241762,-2049.23,8.219e-05,2]
[355668364,1741450241771,-2219.69,8.219e-05,2]
[355668367,1741450241781,-1357.3,8.219e-05,2]
[355668369,1741450241792,-500.0,8.219e-05,2]
[355668371,1741450241802,-500.0,8.219e-05,2]
[355668372,1741450241812,-500.0,8.219e-05,2]
[355668375,1741450241826,-6133.09,8.219e-05,2]
[355668377,1741450241836,-2171.47,8.219e-05,2]
[355668379,1741450241846,-2984.49,8.219e-05,2]
[355668380,1741450241855,-500.0,8.219e-05,2]
[355668383,1741450241865,-1037.89,8.219e-05,2]
[355668385,1741450241875,-500.0,8.219e-05,2]
[355668386,1741450241884,-867.84,8.219e-05,2]
[355668388,1741450241895,-500.0,8.219e-05,2]
[355668391,1741450241906,-1863.08,8.219e-05,2]
[355668392,1741450241915,-659.99,8.219e-05,2]
[355668395,1741450241925,-500.0,8.219e-05,2]
[355668396,1741450241935,-1075.32,8.219e-05,2]
[355668398,1741450241945,-3089.68,8.219e-05,2]
[355668423,1741450242174,-2187.41,8.219e-05,2]
[355668425,1741450242185,-572.79,8.219e-05,2]
[355668427,1741450242195,-500.0,8.219e-05,2]
[355668429,1741450242205,-5995.75,8.219e-05,2]
[355668431,1741450242215,-752.18,8.219e-05,2]
[355668433,1741450242225,-1319.49,8.219e-05,2]
[355668435,1741450242235,-1011.66,8.219e-05,2]
[355668437,1741450242244,-1350.39,8.219e-05,2]
[355668439,1741450242253,-1382.87,8.219e-05,2]
[355668441,1741450242262,-6919.1,8.219e-05,2]
[355668443,1741450242277,-567.75,8.219e-05,2]
[355668445,1741450242287,-604.0,8.219e-05,2]
[355668447,1741450242299,-1687.87,8.219e-05,2]